bitfinex/quotes_BTCUSD_20220303
["timestamp","ask_amount","ask_price","bid_price","bid_amount"]
[1646293666975,0.025,43475.0,43468.0,0.00015558]
[1646293667175,0.0365,43475.0,43468.0,0.00015558]
[1646293667576,0.0365,43475.0,43474.0,0.25915832]
[1646293667823,0.0115,43475.0,43469.0,0.00015558]
[1646293668020,0.0115,43475.0,43471.0,0.19018602]
[1646293668219,0.0115,43479.0,43473.0,0.057546]
[1646293668419,0.355192,43478.0,43473.0,0.057546]
[1646293668620,0.355192,43476.0,43473.0,0.057546]
[1646293668823,0.355192,43476.0,43473.0,0.30838736]
[1646293669720,0.355192,43476.0,43473.0,0.057546]
[1646293670723,0.362192,43476.0,43473.0,0.057546]
[1646293671977,0.355192,43476.0,43473.0,0.057546]
[1646293672573,0.1,43475.0,43473.0,0.057546]
[1646293672773,0.355192,43474.0,43473.0,0.057546]
[1646293673275,0.455192,43474.0,43473.0,0.057546]
[1646293674677,0.1,43474.0,43473.0,0.057546]
[1646293675080,0.355192,43480.0,43473.0,0.057546]
[1646293675331,0.03,43481.0,43473.0,0.057546]
[1646293675732,0.005,43479.0,43474.0,0.355192]
[1646293676031,0.005,43479.0,43476.0,0.31153]
[1646293676232,0.005,43479.0,43478.0,0.15917077]
[1646293676430,0.1449,43487.0,43478.0,0.47383899]
[1646293676629,0.025,43487.0,43479.0,0.11506]
[1646293677031,0.355192,43491.0,43479.0,0.11495605]
[1646293677231,0.355192,43489.0,43479.0,0.11495605]
[1646293677432,0.28397072,43488.0,43479.0,0.11495605]
[1646293677632,0.40897072,43488.0,43479.0,0.11495605]
[1646293677831,0.125,43488.0,43479.0,0.11495605]
[1646293678838,0.025,43488.0,43479.0,0.11495605]
[1646293680171,0.025,43488.0,43486.0,0.23205114]
[1646293680372,0.355192,43487.0,43479.0,0.22865605]
[1646293680576,0.025,43488.0,43479.0,0.22865605]
[1646293681275,0.01149,43498.0,43480.0,0.355192]
[1646293681474,0.00015549,43499.0,43481.0,0.36056822]
[1646293681674,0.00015549,43499.0,43482.0,0.355192]
[1646293681872,0.00015549,43499.0,43481.0,0.38358822]
[1646293682072,0.1397,43500.0,43481.0,0.38358822]
[1646293682073,0.28196952,43498.0,43492.0,0.057521]
[1646293682375,0.355192,43497.0,43492.0,0.057521]
[1646293682834,0.355192,43495.0,43492.0,0.057521]
[1646293683034,0.355192,43498.0,43492.0,0.057521]
[1646293683239,0.025,43500.0,43492.0,0.057521]
[1646293683435,0.00015551,43499.0,43493.0,0.23749566]
[1646293683835,0.355192,43498.0,43493.0,0.23749566]
[1646293684034,0.00015551,43499.0,43493.0,0.23749566]
[1646293684236,0.00015551,43499.0,43492.0,0.057521]
[1646293684435,0.005,43500.0,43492.0,0.057521]
[1646293684635,0.35534752,43499.0,43492.0,0.057521]
[1646293684836,0.1,43498.0,43492.0,0.057521]
[1646293685236,0.355192,43497.0,43492.0,0.057521]
[1646293685737,0.1,43496.0,43492.0,0.057521]
[1646293686782,0.05768151,43499.0,43492.0,0.057521]
[1646293686783,0.355192,43497.0,43492.0,0.057521]
[1646293687087,0.005,43498.0,43492.0,0.057521]
[1646293687482,0.004,43497.0,43492.0,0.057521]
[1646293688082,0.057526,43499.0,43492.0,0.057521]
[1646293688289,0.05768151,43499.0,43492.0,0.057521]
[1646293688581,0.355192,43498.0,43493.0,0.00142193]
[1646293688784,0.1,43497.0,43493.0,0.00142193]
[1646293689584,0.104,43497.0,43493.0,0.00142193]
[1646293690219,0.004,43497.0,43493.0,0.00142193]
[1646293690838,0.00015552,43499.0,43493.0,0.17394993]
[1646293691020,0.00015552,43499.0,43494.0,0.31466822]
[1646293691224,0.00015552,43499.0,43498.0,0.16592265]
[1646293691420,0.00015552,43499.0,43498.0,0.48059087]
[1646293691622,0.003,43504.0,43498.0,0.48059087]
[1646293691821,0.003,43504.0,43499.0,0.115008]
[1646293692022,0.00015552,43501.0,43499.0,0.115008]
[1646293692220,0.00015552,43501.0,43500.0,0.31466822]
[1646293692821,0.015,43509.0,43500.0,0.31466822]
[1646293693020,0.00015551,43503.0,43500.0,0.31466822]
[1646293694079,0.355192,43506.0,43500.0,0.31466822]
[1646293694278,0.00015551,43504.0,43500.0,0.31466822]
[1646293695280,0.1,43507.0,43500.0,0.31466822]
[1646293695479,0.00015551,43504.0,43500.0,0.31466822]
[1646293695679,0.00015551,43504.0,43499.0,0.115008]
[1646293695880,0.00015551,43504.0,43499.0,0.42967622]
[1646293696085,0.355192,43503.0,43496.0,0.05898427]
[1646293696282,0.455192,43502.0,43496.0,0.00146627]
[1646293696485,0.05777904,43500.0,43496.0,0.00146627]
[1646293696686,0.355192,43499.0,43496.0,0.00146627]
[1646293696883,0.23830782,43497.0,43496.0,0.00146627]
[1646293697185,0.74772459,43497.0,43496.0,0.00146627]
[1646293697380,0.59349982,43497.0,43496.0,0.00146627]
[1646293697583,0.85074897,43497.0,43496.0,0.00102667]
[1646293697822,0.69749982,43497.0,43496.0,0.00102667]
[1646293698025,0.85074897,43497.0,43496.0,0.00102667]
[1646293698220,0.69749982,43497.0,43496.0,0.00102667]
[1646293698419,0.85074897,43497.0,43496.0,0.00102667]
[1646293698624,0.85074897,43497.0,43495.0,0.0028057]
[1646293698625,0.355192,43496.0,43495.0,0.00141319]
[1646293698822,0.466682,43496.0,43495.0,0.00141319]
[1646293699321,0.512582,43496.0,43495.0,0.00141319]
[1646293699523,0.515582,43496.0,43495.0,0.00141319]
[1646293699722,0.510582,43496.0,43495.0,0.00141319]
[1646293700724,0.507582,43496.0,43495.0,0.00141319]
[1646293702185,0.64934115,43496.0,43495.0,0.00141319]
[1646293702385,0.496092,43496.0,43495.0,0.00141319]
[1646293702783,0.64934115,43496.0,43495.0,0.00141319]
[1646293703585,0.65234115,43496.0,43495.0,0.00141319]
[1646293704188,0.6537571,43496.0,43484.0,0.1639903]
[1646293704386,0.057538,43493.0,43484.0,0.1639903]
[1646293704586,0.355192,43492.0,43484.0,0.1639903]
[1646293704787,0.355192,43492.0,43484.0,0.2215253]
[1646293704788,0.1,43491.0,43484.0,0.2215253]
[1646293704986,0.355148,43490.0,43484.0,0.2215253]
[1646293705216,0.1,43489.0,43484.0,0.2215253]
[1646293705418,0.355148,43490.0,43484.0,0.2215253]
[1646293705817,0.025,43492.0,43484.0,0.2215253]
[1646293705818,0.1,43489.0,43484.0,0.2215253]
[1646293706718,0.025,43492.0,43484.0,0.2215253]
[1646293706919,0.355148,43491.0,43484.0,0.2215253]
[1646293707118,0.380148,43492.0,43491.0,0.17999731]
[1646293707920,0.025,43492.0,43491.0,0.17999731]
[1646293708219,0.355148,43495.0,43491.0,0.17999731]
[1646293708824,0.00015551,43499.0,43492.0,0.31466822]
[1646293709280,0.10015551,43499.0,43497.0,0.2886736]
[1646293709482,0.10015551,43499.0,43497.0,0.3461846]
[1646293709681,0.1,43499.0,43497.0,0.057511]
[1646293709882,0.1,43499.0,43495.0,0.115022]
[1646293710082,0.1,43499.0,43492.0,0.31466822]
[1646293710083,0.355148,43498.0,43492.0,0.31466822]
[1646293710282,0.1,43499.0,43492.0,0.31466822]
[1646293710682,0.1,43499.0,43494.0,0.20562845]
[1646293710882,0.355148,43498.0,43492.0,0.31466822]
[1646293711084,0.10015552,43499.0,43492.0,0.31466822]
[1646293711281,0.12515552,43499.0,43492.0,0.37219022]
[1646293711482,0.004,43498.0,43492.0,0.37219022]
[1646293712084,0.004,43498.0,43494.0,0.2197594]
[1646293712930,0.355148,43498.0,43494.0,0.2197594]
[1646293713332,0.1,43499.0,43494.0,0.2197594]
[1646293713533,0.0067022,43498.0,43494.0,0.2197594]
[1646293713833,0.0067022,43498.0,43495.0,0.31466822]
[1646293714835,0.0017022,43498.0,43495.0,0.31466822]
[1646293715531,0.0067022,43498.0,43495.0,0.31466822]
[1646293716875,0.0067022,43498.0,43494.0,0.3347924]
[1646293716876,0.0017022,43498.0,43494.0,0.3347924]
[1646293717073,0.0017022,43498.0,43494.0,0.115033]
[1646293717474,0.0057022,43498.0,43494.0,0.115033]
[1646293718074,0.0057022,43498.0,43493.0,0.115033]
[1646293718976,0.0057022,43498.0,43496.0,0.00454669]
[1646293719175,0.355148,43497.0,43496.0,0.00454669]
[1646293722320,0.355148,43497.0,43496.0,0.00444055]
[1646293723121,0.355148,43497.0,43496.0,0.06195655]
[1646293723977,0.355148,43498.0,43496.0,0.06151298]
[1646293725578,0.359148,43498.0,43496.0,0.06151298]
[1646293726878,0.355148,43498.0,43496.0,0.06151298]
[1646293727082,0.355148,43498.0,43496.0,0.00399698]
[1646293727477,0.359148,43498.0,43496.0,0.00399698]
[1646293728754,0.355148,43498.0,43496.0,0.00399698]
[1646293728955,0.355148,43498.0,43496.0,0.00097387]
[1646293729758,0.360148,43498.0,43496.0,0.00097387]
[1646293730955,0.355148,43498.0,43496.0,0.00097387]
[1646293731572,0.359148,43498.0,43496.0,0.00097387]
[1646293732171,0.366638,43497.0,43496.0,0.00097387]
[1646293732975,0.355148,43497.0,43496.0,0.00097387]
[1646293733672,0.383168,43497.0,43495.0,0.00095213]
[1646293734875,0.378168,43497.0,43495.0,0.00095213]
[1646293735521,0.355148,43497.0,43495.0,0.00095213]
[1646293738125,0.40871519,43497.0,43495.0,0.00095213]
[1646293738327,0.135,43496.0,43495.0,0.00095213]
[1646293738524,0.490148,43496.0,43487.0,0.30600726]
[1646293738726,0.057533,43494.0,43487.0,0.30600726]
[1646293738976,0.355148,43493.0,43487.0,0.30600726]
[1646293739176,0.355148,43493.0,43487.0,0.11600726]
[1646293740881,0.355148,43492.0,43487.0,0.11600726]
[1646293741081,0.355148,43495.0,43487.0,0.11600726]
[1646293741380,0.355148,43495.0,43489.0,0.18731191]
[1646293742823,0.355148,43495.0,43490.0,0.31466822]
[1646293743622,0.025,43496.0,43490.0,0.31466822]
[1646293743824,0.355148,43495.0,43490.0,0.31466822]
[1646293744024,0.025,43496.0,43490.0,0.31466822]
[1646293744229,0.355148,43495.0,43490.0,0.31466822]
[1646293744424,0.005,43500.0,43490.0,0.31466822]
[1646293744726,0.35530351,43499.0,43490.0,0.31466822]
[1646293744924,0.38030351,43499.0,43490.0,0.31466822]
[1646293745324,0.355148,43497.0,43490.0,0.31466822]
[1646293746980,0.355148,43497.0,43490.0,0.31456891]
[1646293747784,0.355148,43495.0,43490.0,0.31456891]
[1646293748180,0.1,43496.0,43490.0,0.31456891]
[1646293748181,0.355148,43493.0,43490.0,0.31456891]
[1646293748880,0.355148,43493.0,43492.0,0.00315524]
[1646293750081,0.358148,43493.0,43492.0,0.00315524]
[1646293751236,0.455148,43493.0,43492.0,0.00315524]
[1646293752032,0.458148,43493.0,43492.0,0.00315524]
[1646293752233,0.504048,43493.0,43492.0,0.00315524]
[1646293752433,0.515538,43493.0,43492.0,0.00315524]
[1646293753234,0.512538,43493.0,43492.0,0.00315524]
[1646293753974,0.512538,43493.0,43492.0,0.00094995]
[1646293754575,0.501048,43493.0,43492.0,0.00094995]
[1646293755480,0.355148,43491.0,43484.0,0.27751754]
[1646293755678,0.380148,43491.0,43484.0,0.27751754]
[1646293755877,0.355148,43489.0,43484.0,0.16281754]
[1646293756078,0.355148,43489.0,43484.0,0.22035054]
[1646293756279,0.1,43488.0,43485.0,0.115067]
[1646293756578,0.355148,43487.0,43484.0,0.22035054]
[1646293756778,0.1,43486.0,43484.0,0.22035054]
[1646293758029,0.355148,43490.0,43485.0,0.2313842]
[1646293758227,0.1,43489.0,43485.0,0.2313842]
[1646293759530,0.00147998,43490.0,43485.0,0.2313842]
[1646293761485,0.00147998,43490.0,43486.0,0.355148]
[1646293761784,0.00147998,43490.0,43485.0,0.2313842]
[1646293762487,0.00147998,43490.0,43487.0,0.412671]
[1646293762488,0.00647998,43490.0,43487.0,0.412671]
[1646293762685,0.00647998,43490.0,43487.0,0.057523]
[1646293763585,0.00147998,43490.0,43487.0,0.057523]
[1646293763985,0.00147998,43490.0,43488.0,0.316364]
[1646293764187,0.00147998,43490.0,43487.0,0.057523]
[1646293765438,0.00147998,43490.0,43488.0,0.355148]
[1646293765638,0.00147998,43490.0,43487.0,0.057523]
[1646293766440,0.005,43495.0,43487.0,0.057523]
[1646293768140,0.1,43499.0,43487.0,0.057523]
[1646293768638,0.004,43495.0,43487.0,0.057523]
[1646293768992,0.00172537,43489.0,43487.0,0.057523]
[1646293771188,0.00172537,43489.0,43487.0,0.058523]
[1646293771788,0.00172537,43489.0,43487.0,0.057523]
[1646293773435,0.05943926,43498.0,43488.0,0.00356143]
[1646293773642,0.355148,43497.0,43488.0,0.00356143]
[1646293773835,0.1,43496.0,43488.0,0.00356143]
[1646293774434,0.095,43496.0,43488.0,0.00356143]
[1646293774835,0.1,43496.0,43488.0,0.00356143]
[1646293775036,0.005,43496.0,43488.0,0.00356143]
[1646293776135,0.025,43497.0,43488.0,0.00356143]
[1646293777485,0.025,43497.0,43489.0,0.115041]
[1646293778086,0.00191326,43498.0,43489.0,0.115041]
[1646293778286,0.00192399,43495.0,43491.0,0.00355409]
[1646293778486,0.00192399,43495.0,43492.0,0.24784949]
[1646293783429,0.005,43500.0,43492.0,0.24784949]
[1646293783430,0.00692245,43500.0,43493.0,0.00354674]
[1646293783630,0.00692245,43500.0,43494.0,0.057515]
[1646293784076,0.00192245,43500.0,43494.0,0.057515]
[1646293785076,0.00192245,43500.0,43499.0,0.2173562]
[1646293785276,0.00192245,43500.0,43499.0,0.41014212]
[1646293787843,0.00192245,43500.0,43499.0,0.58700623]
[1646293788048,0.74528578,43524.0,43499.0,0.58700623]
[1646293788245,0.1,43509.0,43502.0,0.114999]
[1646293788442,0.15315745,43522.0,43503.0,0.46818196]
[1646293788643,0.355148,43521.0,43503.0,0.46818196]
[1646293788842,0.02302,43520.0,43503.0,0.46818196]
[1646293789045,0.355148,43519.0,43503.0,0.46818196]
[1646293789242,0.02302,43521.0,43513.0,0.20451547]
[1646293789442,0.355148,43520.0,43513.0,0.41063915]
[1646293790443,9.297e-05,43519.0,43513.0,0.41063915]
[1646293790643,9.297e-05,43519.0,43513.0,0.20451547]
[1646293791044,0.355148,43518.0,43513.0,0.20451547]
[1646293791247,0.1,43517.0,43513.0,0.20451547]
[1646293791477,0.355148,43516.0,43513.0,0.20451547]
[1646293791879,0.355148,43514.0,43513.0,0.20451547]
[1646293792282,0.1,43514.0,43513.0,0.20451547]
[1646293792479,0.1,43514.0,43513.0,0.52269743]
[1646293792679,0.082494,43523.0,43513.0,0.52269743]
[1646293792680,0.0001733,43516.0,43513.0,0.52269743]
[1646293793481,0.0001733,43516.0,43513.0,0.63766843]
[1646293793681,0.00265854,43518.0,43515.0,0.15]
[1646293793881,0.00265854,43518.0,43516.0,0.31818196]
[1646293794081,0.0001734,43517.0,43516.0,0.31818196]
[1646293794482,0.001,43526.0,43517.0,1.0]
[1646293794780,0.001,43526.0,43524.0,0.27150904]
[1646293794980,0.355148,43525.0,43524.0,0.21855186]
[1646293795428,0.001,43526.0,43524.0,0.53673382]
[1646293795627,0.001,43526.0,43525.0,0.31818196]
[1646293795829,0.001,43527.0,43525.0,0.31818196]
[1646293796029,0.001,43529.0,43526.0,0.0459]
[1646293796229,0.001,43529.0,43528.0,0.15]
[1646293796529,0.001,43529.0,43528.0,0.51408196]
[1646293797331,0.001,43537.0,43530.0,0.02302]
[1646293797532,0.0017274,43537.0,43534.0,0.465613]
[1646293797731,0.0017274,43537.0,43534.0,0.51408196]
[1646293798634,0.001,43537.0,43534.0,0.51408196]
[1646293798830,0.00118187,43537.0,43534.0,0.51408196]
[1646293799676,0.001,43537.0,43534.0,0.51408196]
[1646293800078,0.00118187,43537.0,43534.0,0.51408196]
[1646293800480,0.008,43535.0,43534.0,0.51408196]
[1646293801782,0.001,43535.0,43534.0,0.0459]
[1646293802582,0.001,43535.0,43533.0,0.21162711]
[1646293802583,0.004,43535.0,43533.0,0.21162711]
[1646293804139,0.004,43535.0,43534.0,0.00178443]
[1646293804140,0.001,43535.0,43534.0,0.00178443]
[1646293804542,0.005,43535.0,43534.0,0.00178443]
[1646293805843,0.001,43535.0,43534.0,0.00178443]
[1646293807684,0.001,43535.0,43534.0,0.00118649]
[1646293808583,0.356148,43535.0,43534.0,0.00118649]
[1646293808983,0.356148,43535.0,43534.0,0.00180281]
[1646293809185,0.360148,43535.0,43534.0,0.00180281]
[1646293809785,0.363148,43535.0,43534.0,0.00180281]
[1646293809985,0.008,43535.0,43534.0,0.00180281]
[1646293810432,0.001,43535.0,43534.0,0.00180281]
[1646293811536,0.356148,43535.0,43534.0,0.00180281]
[1646293811935,0.001,43535.0,43534.0,0.00180281]
[1646293812537,0.356148,43535.0,43534.0,0.00180281]
[1646293812837,0.001,43535.0,43534.0,0.00180281]
[1646293813337,0.001,43535.0,43534.0,0.31998477]
[1646293813536,0.001,43535.0,43534.0,0.00180281]
[1646293814290,0.001,43535.0,43534.0,0.00240789]
[1646293816992,0.001,43535.0,43534.0,0.20996943]
[1646293817192,0.001,43535.0,43534.0,0.00240789]
[1646293817591,0.005,43535.0,43534.0,0.00240789]
[1646293818732,0.356148,43535.0,43534.0,0.00240789]
[1646293819527,0.360148,43535.0,43534.0,0.00233175]
[1646293820728,0.356148,43535.0,43534.0,0.00233175]
[1646293821580,0.001,43535.0,43534.0,0.00233175]
[1646293823981,0.356148,43535.0,43534.0,0.00233175]
[1646293824184,0.001,43535.0,43534.0,0.00233175]
[1646293827245,0.356148,43535.0,43534.0,0.00233175]
[1646293827543,0.360148,43535.0,43534.0,0.00233175]
[1646293828545,0.460148,43535.0,43534.0,0.00233175]
[1646293828745,0.502048,43535.0,43534.0,0.00233175]
[1646293829019,0.60325443,43535.0,43534.0,0.00233175]
[1646293829228,0.61269143,43535.0,43534.0,0.00233175]
[1646293829519,0.61569143,43535.0,43534.0,0.00233175]
[1646293829721,0.61567048,43535.0,43534.0,0.00233175]
[1646293830119,0.514485,43535.0,43534.0,0.00233175]
[1646293830329,0.61569259,43535.0,43534.0,0.00233175]
[1646293831120,0.61569259,43535.0,43520.0,0.2791673]
[1646293831121,0.21449127,43527.0,43518.0,0.17923527]
[1646293831322,0.057493,43524.0,43518.0,0.17923527]
[1646293831522,0.355148,43523.0,43518.0,0.17923527]
[1646293832422,0.355148,43521.0,43519.0,0.23621067]
[1646293833242,0.355148,43521.0,43518.0,0.17923527]
[1646293833445,0.358148,43521.0,43518.0,0.17923527]
[1646293835446,0.358148,43521.0,43516.0,0.114974]
[1646293835743,0.358148,43521.0,43513.0,0.31756926]
[1646293835944,0.358148,43521.0,43511.0,0.3954]
[1646293835945,0.057502,43519.0,43511.0,0.3954]
[1646293836144,0.057502,43519.0,43511.0,0.1979]
[1646293836145,0.53023365,43518.0,43511.0,0.1979]
[1646293836343,0.355148,43516.0,43511.0,0.35406948]
[1646293836591,0.355148,43516.0,43511.0,0.41883245]
[1646293836793,0.401048,43516.0,43508.0,0.31756926]
[1646293837195,0.355148,43514.0,43508.0,0.81756926]
[1646293837394,0.412654,43514.0,43508.0,0.31756926]
[1646293837595,0.412654,43514.0,43507.0,0.2697]
[1646293837894,0.412654,43514.0,43507.0,0.15]
[1646293838296,0.412654,43514.0,43508.0,0.057503]
[1646293838496,0.355148,43512.0,43508.0,0.057503]
[1646293840336,0.350148,43512.0,43508.0,0.057503]
[1646293841440,0.354148,43512.0,43508.0,0.057503]
[1646293842734,0.350148,43512.0,43508.0,0.057503]
[1646293843737,0.350148,43512.0,43511.0,0.0028224]
[1646293844191,0.450148,43512.0,43511.0,0.0028224]
[1646293851334,0.496048,43512.0,43511.0,0.0028224]
[1646293851600,0.6012812,43512.0,43511.0,0.0028224]
[1646293852796,0.5972812,43512.0,43511.0,0.0028224]
[1646293862000,0.59727422,43512.0,43511.0,0.0028224]
[1646293862201,0.450148,43512.0,43511.0,0.0028224]
[1646293862400,0.14381804,43517.0,43511.0,0.19437521]
[1646293862600,0.14381804,43517.0,43512.0,0.15]
[1646293862601,0.00190186,43517.0,43512.0,0.15]
[1646293862851,0.00190186,43517.0,43513.0,0.31756926]
[1646293863451,0.00190186,43517.0,43514.0,0.24145503]
[1646293864651,0.00190186,43517.0,43514.0,0.24134969]
[1646293865754,0.00190186,43517.0,43514.0,0.29883869]
[1646293866783,0.00190186,43517.0,43514.0,0.44883869]
[1646293867480,0.355072,43516.0,43515.0,0.15]
[1646293867680,0.355072,43516.0,43515.0,0.46756926]
[1646293867884,0.00590186,43517.0,43515.0,0.46756926]
[1646293868082,0.00590186,43517.0,43516.0,0.31756926]
[1646293868883,0.00590186,43517.0,43516.0,0.31987847]
[1646293869084,0.00190186,43517.0,43516.0,0.31987847]
[1646293869882,0.00190186,43517.0,43516.0,0.32087847]
[1646293871534,0.00190186,43517.0,43516.0,0.31987847]
[1646293871735,0.00190186,43517.0,43516.0,0.00230921]
[1646293871937,0.00590186,43517.0,43516.0,0.00230921]
[1646293872539,0.00590186,43517.0,43516.0,0.31987847]
[1646293873996,0.36095986,43517.0,43516.0,0.00230921]
[1646293875196,0.35695986,43517.0,43516.0,0.00230921]
[1646293875997,0.49595986,43517.0,43516.0,0.00230921]
[1646293876498,0.36095986,43517.0,43516.0,0.00230921]
[1646293876897,0.00590186,43517.0,43516.0,0.00230921]
[1646293877297,0.00190186,43517.0,43516.0,0.00230921]
[1646293877757,0.00190186,43517.0,43516.0,0.31987847]
[1646293887140,0.00190186,43517.0,43516.0,0.46987847]
[1646293888646,0.00190186,43517.0,43516.0,0.46908407]
[1646293888848,0.00190186,43517.0,43516.0,0.31908407]
[1646293889886,0.00190186,43517.0,43516.0,0.46908407]
[1646293891085,0.00190186,43517.0,43516.0,0.46896912]
[1646293891984,0.00690186,43517.0,43516.0,0.46896912]
[1646293893234,0.00190186,43517.0,43516.0,0.46896912]
[1646293894936,0.00190186,43517.0,43516.0,0.31896912]
[1646293898092,0.00146136,43517.0,43516.0,0.31896912]
[1646293898897,0.00406703,43517.0,43516.0,0.31896912]
[1646293905704,0.00406703,43517.0,43516.0,0.81896912]
[1646293908533,0.00398649,43517.0,43516.0,0.81896912]
[1646293909337,0.00398649,43517.0,43516.0,0.31896912]
[1646293910138,0.00898649,43517.0,43516.0,0.31896912]
[1646293911338,0.00398649,43517.0,43516.0,0.31896912]
[1646293913104,0.00398649,43517.0,43516.0,0.31756926]
[1646293913304,0.00398649,43517.0,43515.0,0.37160805]
[1646293913510,0.00528932,43517.0,43516.0,0.00214917]
[1646293917235,0.01028932,43517.0,43516.0,0.00214917]
[1646293917735,0.01528932,43517.0,43516.0,0.00214917]
[1646293918335,0.01280031,43517.0,43515.0,0.42909805]
[1646293918538,0.00280031,43517.0,43515.0,0.42909805]
[1646293919489,0.00780031,43517.0,43515.0,0.42909805]
[1646293920690,0.00280031,43517.0,43515.0,0.42909805]
[1646293921497,0.00680031,43517.0,43515.0,0.42909805]
[1646293922838,0.00280031,43517.0,43515.0,0.42909805]
[1646293923539,0.00680031,43517.0,43515.0,0.42909805]
[1646293924040,0.00680031,43517.0,43516.0,0.00272523]
[1646293924041,0.00538082,43517.0,43516.0,0.00272523]
[1646293924845,0.00138082,43517.0,43516.0,0.00272523]
[1646293925444,0.00538082,43517.0,43516.0,0.00272523]
[1646293926706,0.00138082,43517.0,43516.0,0.00272523]
[1646293927606,0.00538082,43517.0,43516.0,0.00272523]
[1646293928812,0.00138082,43517.0,43516.0,0.00272523]
[1646293929210,0.00919537,43517.0,43515.0,0.15]
[1646293929415,0.355058,43516.0,43512.0,0.1231]
[1646293929714,0.355058,43516.0,43508.0,0.1834]
[1646293929715,0.355058,43514.0,43508.0,0.1834]
[1646293929912,0.26635746,43510.0,43504.0,0.534704]
[1646293930111,0.400958,43509.0,43502.0,0.15]
[1646293930943,0.400958,43509.0,43499.0,0.207509]
[1646293931142,0.355058,43508.0,43499.0,0.15]
[1646293931345,0.0459,43508.0,43499.0,0.15]
[1646293933443,0.0509,43508.0,43501.0,0.057512]
[1646293933643,0.0509,43508.0,43503.0,0.00409292]
[1646293933847,0.355058,43507.0,43503.0,0.00409292]
[1646293934288,0.355058,43507.0,43503.0,0.00398427]
[1646293935595,0.359058,43507.0,43503.0,0.00398427]
[1646293936496,0.259058,43507.0,43503.0,0.00398427]
[1646293936694,0.255058,43507.0,43503.0,0.00398427]
[1646293936894,0.0459,43508.0,43503.0,0.00398427]
[1646293937495,0.0459,43508.0,43507.0,0.15]
[1646293937753,0.014289,43513.0,43507.0,0.15]
[1646293937954,0.355094,43512.0,43511.0,0.19308305]
[1646293938358,0.455094,43512.0,43511.0,0.19308305]
[1646293938855,0.500994,43512.0,43511.0,0.19308305]
[1646293939955,0.025,43514.0,43511.0,0.51229737]
[1646293940156,0.025,43514.0,43512.0,0.15]
[1646293940355,0.10638082,43517.0,43513.0,0.31921432]
[1646293940356,0.00638082,43517.0,43513.0,0.31921432]
[1646293940555,0.00638082,43517.0,43513.0,0.6004765]
[1646293940756,0.00138082,43517.0,43513.0,0.6004765]
[1646293940956,0.00138082,43517.0,43516.0,0.15]
[1646293942793,0.00138082,43517.0,43516.0,0.46921432]
[1646293944096,0.00138082,43517.0,43516.0,0.31921432]
[1646293944493,0.00138082,43517.0,43516.0,0.46921432]
[1646293945753,0.00138082,43517.0,43516.0,0.31921432]
[1646293946149,0.00138082,43517.0,43516.0,0.46921432]
[1646293947350,0.00138082,43517.0,43516.0,0.31921432]
[1646293947750,0.00138082,43517.0,43516.0,0.15]
[1646293948752,0.00531526,43517.0,43516.0,0.15217403]
[1646293948987,0.00531526,43517.0,43516.0,0.00217403]
[1646293949491,0.01031526,43517.0,43516.0,0.00217403]
[1646293950889,0.00531526,43517.0,43516.0,0.00217403]
[1646293951491,0.01031526,43517.0,43516.0,0.00217403]
[1646293952939,0.00531526,43517.0,43516.0,0.00217403]
[1646293953539,0.00931526,43517.0,43516.0,0.00217403]
[1646293953739,0.00800378,43517.0,43516.0,0.00217403]
[1646293954944,0.00400378,43517.0,43516.0,0.00217403]
[1646293955642,0.00900378,43517.0,43516.0,0.00173443]
[1646293956692,0.00900378,43517.0,43514.0,0.22840043]
[1646293956891,0.00400378,43517.0,43514.0,0.22840043]
[1646293957494,0.00900378,43517.0,43514.0,0.22840043]
[1646293958801,0.00400378,43517.0,43514.0,0.22840043]
[1646293959696,0.00400378,43517.0,43514.0,0.1167]
[1646293961562,0.01100378,43517.0,43514.0,0.1167]
[1646293961960,0.355094,43516.0,43514.0,0.1167]
[1646293962160,0.01100378,43517.0,43513.0,0.15]
[1646293962761,0.00400378,43517.0,43513.0,0.15]
[1646293962961,0.355094,43516.0,43513.0,0.15]
[1646293963361,0.00400378,43517.0,43513.0,0.15]
[1646293963562,0.005,43516.0,43513.0,0.15]
[1646293963761,0.00611853,43516.0,43513.0,0.15]
[1646293964895,0.00111853,43516.0,43513.0,0.15]
[1646293965495,0.355094,43515.0,43513.0,0.15]
[1646293965697,0.25145967,43516.0,43513.0,0.15]
[1646293965893,0.355094,43515.0,43513.0,0.15]
[1646293966094,0.25145967,43516.0,43513.0,0.15]
[1646293966295,0.355094,43515.0,43513.0,0.15]
[1646293966494,0.25145967,43516.0,43513.0,0.15]
[1646293966696,0.355094,43515.0,43513.0,0.15]
[1646293966897,0.355094,43515.0,43513.0,0.2075]
[1646293967098,0.355094,43515.0,43511.0,0.15]
[1646293967297,0.24345967,43516.0,43511.0,0.15]
[1646293967500,0.23845967,43516.0,43511.0,0.15]
[1646293967756,0.006,43515.0,43511.0,0.15]
[1646293968353,0.006,43515.0,43509.0,0.1153]
[1646293968952,0.23845967,43516.0,43509.0,0.1153]
[1646293969154,0.00111758,43515.0,43509.0,0.1153]
[1646293970855,0.23067252,43516.0,43509.0,0.1153]
[1646293971056,0.00138082,43517.0,43509.0,0.1153]
[1646293971257,0.355094,43516.0,43509.0,0.1153]
[1646293971510,0.00138082,43517.0,43509.0,0.1153]
[1646293971712,0.007,43516.0,43509.0,0.1153]
[1646293972913,0.00138082,43517.0,43509.0,0.1153]
[1646293973118,0.355094,43516.0,43509.0,0.1153]
[1646293973312,0.1,43515.0,43509.0,0.1153]
[1646293973513,0.00138082,43517.0,43508.0,0.452799]
[1646293974316,0.00260496,43514.0,43508.0,0.452799]
[1646293978749,0.00138082,43517.0,43511.0,0.0026715]
[1646293978750,0.355094,43516.0,43511.0,0.0026715]
[1646293979031,0.355094,43515.0,43512.0,0.057492]
[1646293979229,0.025,43516.0,43512.0,0.057492]
[1646293980230,0.355094,43515.0,43512.0,0.057492]
[1646293981334,0.025,43516.0,43512.0,0.057492]
[1646293981532,0.355094,43515.0,43512.0,0.057492]
[1646293983657,0.355094,43515.0,43514.0,0.00266055]
[1646293983856,0.455094,43515.0,43514.0,0.00266055]
[1646293984056,0.4548283,43515.0,43514.0,0.00266055]